[Event "Late Titled Tuesday Blitz February 8 2022"]
[White "Kukula, Pawel"]
[Black "Karttunen, Mika"]
[WhiteFideId "1115081"]
[BlackFideId "502081"]
[WhiteElo "2203"]
[BlackElo "2343"]
[Result "1-0"]
[Round "06"]
[TimeControl "180+1"]
[Date "2022.02.09"]
[WhiteClock "0:00:15"]
[BlackClock "0:00:01"]

1. d4 {[%clk 0:02:59]}  d5 {[%clk 0:02:59]} 2. Nf3 {[%clk 0:02:57]}  Nf6 {[%clk 0:02:59]} 3. e3 {[%clk 0:02:57]}  e6 {[%clk 0:02:59]} 4. Bd3 {[%clk 0:02:57]}  Be7 {[%clk 0:02:59]} 5. O-O {[%clk 0:02:56]}  O-O {[%clk 0:02:59]} 6. Nbd2 {[%clk 0:02:55]}  c5 {[%clk 0:02:59]} 7. c3 {[%clk 0:02:55]}  Nc6 {[%clk 0:02:59]} 8. Ne5 {[%clk 0:02:53]}  Nd7 {[%clk 0:02:38]} 9. f4 {[%clk 0:02:51]}  f5 {[%clk 0:02:37]} 10. b3 {[%clk 0:02:34]}  Ndxe5 {[%clk 0:02:30]} 11. fxe5 {[%clk 0:02:35]}  Bd7 {[%clk 0:02:20]} 12. Nf3 {[%clk 0:02:31]}  Be8 {[%clk 0:02:18]} 13. Qe1 {[%clk 0:02:30]}  Bh5 {[%clk 0:02:10]} 14. Bb2 {[%clk 0:02:24]}  cxd4 {[%clk 0:02:03]} 15. exd4 {[%clk 0:02:24]}  g5 {[%clk 0:01:45]} 16. Rc1 {[%clk 0:02:12]}  g4 {[%clk 0:01:43]} 17. Nd2 {[%clk 0:02:11]}  Bg5 {[%clk 0:01:43]} 18. Rc2 {[%clk 0:02:10]}  f4 {[%clk 0:01:22]} 19. Ba3 {[%clk 0:02:06]}  Rf7 {[%clk 0:01:22]} 20. b4 {[%clk 0:01:51]}  a6 {[%clk 0:01:21]} 21. Bc1 {[%clk 0:01:50]}  Bh6 {[%clk 0:01:20]} 22. Nb3 {[%clk 0:01:49]}  b6 {[%clk 0:01:16]} 23. Rcf2 {[%clk 0:01:34]}  Qf8 {[%clk 0:01:11]} 24. c4 {[%clk 0:01:28]}  Nxb4 {[%clk 0:01:07]} 25. Bb1 {[%clk 0:01:16]}  dxc4 {[%clk 0:00:42]} 26. Nd2 {[%clk 0:01:15]}  Nd3 {[%clk 0:00:30]} 27. Bxd3 {[%clk 0:01:14]}  cxd3 {[%clk 0:00:31]} 28. Ne4 {[%clk 0:01:14]}  f3 {[%clk 0:00:24]} 29. Nf6+ {[%clk 0:01:06]}  Rxf6 {[%clk 0:00:24]} 30. exf6 {[%clk 0:01:07]}  Qxf6 {[%clk 0:00:24]} 31. Bxh6 {[%clk 0:01:01]}  Qxh6 {[%clk 0:00:24]} 32. Qe4 {[%clk 0:01:01]}  Rd8 {[%clk 0:00:18]} 33. Qxd3 {[%clk 0:01:01]}  b5 {[%clk 0:00:18]} 34. Qe4 {[%clk 0:01:00]}  Rd5 {[%clk 0:00:18]} 35. gxf3 {[%clk 0:00:58]}  gxf3 {[%clk 0:00:18]} 36. Kh1 {[%clk 0:00:58]}  Qf6 {[%clk 0:00:16]} 37. Rg1+ {[%clk 0:00:58]}  Kh8 {[%clk 0:00:16]} 38. Rg3 {[%clk 0:00:50]}  Rxd4 {[%clk 0:00:14]} 39. Qe1 {[%clk 0:00:34]}  Rd8 {[%clk 0:00:09]} 40. Rg1 {[%clk 0:00:32]}  e5 {[%clk 0:00:09]} 41. Qe4 {[%clk 0:00:31]}  a5 {[%clk 0:00:08]} 42. Qb7 {[%clk 0:00:29]}  b4 {[%clk 0:00:07]} 43. Qb5 {[%clk 0:00:28]}  Bg6 {[%clk 0:00:05]} 44. Qxa5 {[%clk 0:00:28]}  e4 {[%clk 0:00:05]} 45. Qa7 {[%clk 0:00:22]}  Qf4 {[%clk 0:00:05]} 46. Qe7 {[%clk 0:00:21]}  Rf8 {[%clk 0:00:04]} 47. Re1 {[%clk 0:00:17]}  Qf6 {[%clk 0:00:01]} 48. Qxb4 {[%clk 0:00:16]}  Re8 {[%clk 0:00:01]} 49. Qd2 {[%clk 0:00:15]}  Qe5 {[%clk 0:00:01]} 50. Re3 {[%clk 0:00:15]} 1-0


[Site "https://www.chess.com"]

[Event "Late Titled Tuesday Blitz February 8 2022"]
[White "Ladan, Nicholas"]
[Black "Pesotskiy, Mikhail"]
[WhiteFideId "30918855"]
[BlackFideId "34164453"]
[WhiteElo "2298"]
[BlackElo "2010"]
[Result "0-1"]
[Round "06"]
[TimeControl "180+1"]
[Date "2022.02.09"]
[WhiteClock "0:00:05"]
[BlackClock "0:00:28"]

1. d4 {[%clk 0:03:00]}  Nf6 {[%clk 0:03:00]} 2. c4 {[%clk 0:03:01]}  e6 {[%clk 0:03:00]} 3. g3 {[%clk 0:03:01]}  Bb4+ {[%clk 0:03:01]} 4. Bd2 {[%clk 0:03:01]}  a5 {[%clk 0:03:01]} 5. Bg2 {[%clk 0:03:01]}  O-O {[%clk 0:03:02]} 6. Nf3 {[%clk 0:03:01]}  d6 {[%clk 0:03:02]} 7. O-O {[%clk 0:03:01]}  b6 {[%clk 0:03:02]} 8. Bg5 {[%clk 0:02:58]}  d5 {[%clk 0:03:03]} 9. a3 {[%clk 0:02:53]}  Be7 {[%clk 0:03:02]} 10. Nbd2 {[%clk 0:02:54]}  Bb7 {[%clk 0:03:00]} 11. Qc2 {[%clk 0:02:54]}  Nbd7 {[%clk 0:02:59]} 12. Rfd1 {[%clk 0:02:47]}  Rc8 {[%clk 0:02:55]} 13. Rac1 {[%clk 0:02:38]}  c5 {[%clk 0:02:55]} 14. Qb3 {[%clk 0:02:33]}  Ba8 {[%clk 0:02:52]} 15. cxd5 {[%clk 0:02:23]}  Bxd5 {[%clk 0:02:32]} 16. Qe3 {[%clk 0:02:11]}  h6 {[%clk 0:02:04]} 17. Bxf6 {[%clk 0:01:58]}  Nxf6 {[%clk 0:02:05]} 18. Nf1 {[%clk 0:01:38]}  cxd4 {[%clk 0:02:04]} 19. Nxd4 {[%clk 0:01:35]}  Rxc1 {[%clk 0:02:04]} 20. Rxc1 {[%clk 0:01:35]}  Bxg2 {[%clk 0:02:03]} 21. Kxg2 {[%clk 0:01:35]}  Qa8+ {[%clk 0:02:04]} 22. Nf3 {[%clk 0:01:33]}  Bc5 {[%clk 0:02:01]} 23. Qf4 {[%clk 0:01:23]}  Rd8 {[%clk 0:01:59]} 24. b4 {[%clk 0:01:13]}  axb4 {[%clk 0:01:58]} 25. axb4 {[%clk 0:01:13]}  Nd5 {[%clk 0:01:59]} 26. Qc4 {[%clk 0:00:33]}  Nxb4 {[%clk 0:01:59]} 27. Ne3 {[%clk 0:00:26]}  Bxe3 {[%clk 0:01:33]} 28. fxe3 {[%clk 0:00:27]}  Nd5 {[%clk 0:01:33]} 29. Qb3 {[%clk 0:00:21]}  Nf6 {[%clk 0:01:25]} 30. Qxb6 {[%clk 0:00:19]}  Ng4 {[%clk 0:01:20]} 31. Ra1 {[%clk 0:00:15]}  Qd5 {[%clk 0:01:07]} 32. Ra4 {[%clk 0:00:12]}  Qd1 {[%clk 0:01:06]} 33. Rxg4 {[%clk 0:00:08]}  Qxe2+ {[%clk 0:01:03]} 34. Kh3 {[%clk 0:00:09]}  Rd5 {[%clk 0:00:59]} 35. Qb8+ {[%clk 0:00:06]}  Kh7 {[%clk 0:00:59]} 36. Qb1+ {[%clk 0:00:07]}  f5 {[%clk 0:00:47]} 37. Rf4 {[%clk 0:00:06]}  g5 {[%clk 0:00:46]} 38. Rd4 {[%clk 0:00:04]}  Qxf3 {[%clk 0:00:45]} 39. Qb7+ {[%clk 0:00:04]}  Kg6 {[%clk 0:00:45]} 40. Rxd5 {[%clk 0:00:03]}  Qxd5 {[%clk 0:00:45]} 41. Qc8 {[%clk 0:00:03]}  Qf3 {[%clk 0:00:30]} 42. Qg8+ {[%clk 0:00:04]}  Kf6 {[%clk 0:00:31]} 43. Qh8+ {[%clk 0:00:04]}  Ke7 {[%clk 0:00:31]} 44. Qg7+ {[%clk 0:00:05]}  Kd6 {[%clk 0:00:29]} 45. Qxh6 {[%clk 0:00:05]}  Qf1# {[%clk 0:00:28]} 0-1


[Site "https://www.chess.com"]

[Event "Late Titled Tuesday Blitz February 8 2022"]
[White "Lin, Dachey"]
[Black "Kanyamarala, Tarun"]
[WhiteFideId "2029650"]
[BlackFideId "45004714"]
[WhiteElo "2743"]
[BlackElo "2144"]
[Result "0-1"]
[Round "06"]
[TimeControl "180+1"]
[Date "2022.02.09"]
[WhiteClock "0:00:37"]
[BlackClock "0:00:59"]

1. g4 {[%clk 0:03:00]}  d5 {[%clk 0:02:59]} 2. Bg2 {[%clk 0:03:00]}  c6 {[%clk 0:02:59]} 3. g5 {[%clk 0:03:00]}  e5 {[%clk 0:02:58]} 4. d4 {[%clk 0:03:00]}  e4 {[%clk 0:02:55]} 5. c4 {[%clk 0:02:59]}  Be7 {[%clk 0:02:52]} 6. h4 {[%clk 0:02:59]}  h6 {[%clk 0:02:50]} 7. f4 {[%clk 0:02:59]}  Be6 {[%clk 0:02:39]} 8. Nc3 {[%clk 0:02:58]}  Bb4 {[%clk 0:02:36]} 9. Qb3 {[%clk 0:02:52]}  Bxc3+ {[%clk 0:02:29]} 10. bxc3 {[%clk 0:02:51]}  Qd7 {[%clk 0:02:29]} 11. cxd5 {[%clk 0:02:48]}  cxd5 {[%clk 0:02:27]} 12. e3 {[%clk 0:02:45]}  Ne7 {[%clk 0:02:23]} 13. Ba3 {[%clk 0:02:44]}  Nbc6 {[%clk 0:02:21]} 14. Rb1 {[%clk 0:02:41]}  b6 {[%clk 0:02:20]} 15. Ne2 {[%clk 0:02:33]}  Rc8 {[%clk 0:02:15]} 16. Qa4 {[%clk 0:02:22]}  Nf5 {[%clk 0:02:13]} 17. Kf2 {[%clk 0:02:21]}  Na5 {[%clk 0:02:07]} 18. Qxd7+ {[%clk 0:02:20]}  Kxd7 {[%clk 0:02:08]} 19. Bh3 {[%clk 0:02:18]}  Nc4 {[%clk 0:02:02]} 20. Bxf5 {[%clk 0:02:17]}  Bxf5 {[%clk 0:02:01]} 21. Bc1 {[%clk 0:02:10]}  g6 {[%clk 0:01:53]} 22. Ng3 {[%clk 0:02:07]}  Bg4 {[%clk 0:01:52]} 23. Nf1 {[%clk 0:01:37]}  hxg5 {[%clk 0:01:40]} 24. fxg5 {[%clk 0:01:34]}  f6 {[%clk 0:01:40]} 25. gxf6 {[%clk 0:01:30]}  Rcf8 {[%clk 0:01:39]} 26. Nd2 {[%clk 0:01:30]}  Rxf6+ {[%clk 0:01:37]} 27. Kg3 {[%clk 0:01:30]}  Be2 {[%clk 0:01:11]} 28. Nxc4 {[%clk 0:01:26]}  Rf3+ {[%clk 0:01:10]} 29. Kg2 {[%clk 0:01:24]}  Bxc4 {[%clk 0:01:10]} 30. Ba3 {[%clk 0:00:41]}  Rxe3 {[%clk 0:01:08]} 31. Rh3 {[%clk 0:00:35]}  Rxh3 {[%clk 0:01:05]} 32. Kxh3 {[%clk 0:00:36]}  g5 {[%clk 0:01:05]} 33. Rg1 {[%clk 0:00:36]}  Rxh4+ {[%clk 0:01:04]} 34. Kg3 {[%clk 0:00:36]}  Ke6 {[%clk 0:01:02]} 35. Rg2 {[%clk 0:00:37]}  Kf5 {[%clk 0:01:00]} 36. Rf2+ {[%clk 0:00:37]}  Rf4 {[%clk 0:01:01]} 37. Rh2 {[%clk 0:00:37]}  Rf3+ {[%clk 0:00:59]} 38. Kg2 {[%clk 0:00:37]}  Rxc3 {[%clk 0:00:59]} 0-1


[Site "https://www.chess.com"]

[Event "Late Titled Tuesday Blitz February 8 2022"]
[White "Lopez Del Alamo, Antonio"]
[Black "Pavlidou, Ekaterini"]
[WhiteFideId "2227339"]
[BlackFideId "4213262"]
[WhiteElo "2082"]
[BlackElo "2127"]
[Result "0-1"]
[Round "06"]
[TimeControl "180+1"]
[Date "2022.02.09"]
[WhiteClock "0:00:05"]
[BlackClock "0:00:39"]

1. e4 {[%clk 0:03:00]}  c5 {[%clk 0:02:58]} 2. Nf3 {[%clk 0:02:58]}  e6 {[%clk 0:02:57]} 3. d3 {[%clk 0:02:56]}  Nc6 {[%clk 0:02:56]} 4. g3 {[%clk 0:02:55]}  g6 {[%clk 0:02:56]} 5. d4 {[%clk 0:02:54]}  cxd4 {[%clk 0:02:54]} 6. Nxd4 {[%clk 0:02:55]}  d5 {[%clk 0:02:51]} 7. Bg2 {[%clk 0:02:48]}  Bg7 {[%clk 0:02:51]} 8. Be3 {[%clk 0:02:43]}  Nge7 {[%clk 0:02:49]} 9. Nc3 {[%clk 0:02:35]}  Nxd4 {[%clk 0:02:47]} 10. Bxd4 {[%clk 0:02:35]}  e5 {[%clk 0:02:47]} 11. Bc5 {[%clk 0:02:28]}  d4 {[%clk 0:02:47]} 12. Bxe7 {[%clk 0:02:25]}  Qxe7 {[%clk 0:02:44]} 13. Nd5 {[%clk 0:02:25]}  Qd6 {[%clk 0:02:41]} 14. c3 {[%clk 0:02:12]}  O-O {[%clk 0:02:40]} 15. cxd4 {[%clk 0:02:10]}  exd4 {[%clk 0:02:40]} 16. O-O {[%clk 0:02:11]}  Be6 {[%clk 0:02:38]} 17. Qb3 {[%clk 0:02:05]}  b6 {[%clk 0:02:36]} 18. Rad1 {[%clk 0:01:59]}  Rac8 {[%clk 0:02:35]} 19. Qa4 {[%clk 0:01:45]}  a5 {[%clk 0:02:30]} 20. Qb5 {[%clk 0:01:40]}  Bxd5 {[%clk 0:02:22]} 21. exd5 {[%clk 0:01:41]}  Rc5 {[%clk 0:02:22]} 22. Qd3 {[%clk 0:01:32]}  Rfc8 {[%clk 0:02:21]} 23. h4 {[%clk 0:01:25]}  Rc2 {[%clk 0:02:14]} 24. Rb1 {[%clk 0:01:21]}  Qb4 {[%clk 0:02:10]} 25. a3 {[%clk 0:01:16]}  Qd2 {[%clk 0:02:07]} 26. Qb5 {[%clk 0:01:01]}  Be5 {[%clk 0:01:52]} 27. Rbd1 {[%clk 0:00:48]}  Qe2 {[%clk 0:01:52]} 28. Qxe2 {[%clk 0:00:17]}  Rxe2 {[%clk 0:01:51]} 29. b4 {[%clk 0:00:17]}  a4 {[%clk 0:01:49]} 30. Rfe1 {[%clk 0:00:13]}  Rcc2 {[%clk 0:01:48]} 31. Rxe2 {[%clk 0:00:12]}  Rxe2 {[%clk 0:01:48]} 32. d6 {[%clk 0:00:12]}  Kf8 {[%clk 0:01:42]} 33. d7 {[%clk 0:00:10]}  Ke7 {[%clk 0:01:42]} 34. Bc6 {[%clk 0:00:09]}  f5 {[%clk 0:01:15]} 35. Bxa4 {[%clk 0:00:08]}  f4 {[%clk 0:01:15]} 36. Bb5 {[%clk 0:00:07]}  f3 {[%clk 0:01:01]} 37. Bxe2 {[%clk 0:00:06]}  fxe2 {[%clk 0:01:01]} 38. Re1 {[%clk 0:00:07]}  d3 {[%clk 0:01:01]} 39. f4 {[%clk 0:00:06]}  Bd4+ {[%clk 0:00:58]} 40. Kg2 {[%clk 0:00:05]}  Kxd7 {[%clk 0:00:56]} 41. Kf3 {[%clk 0:00:02]}  d2 {[%clk 0:00:47]} 42. Kxe2 {[%clk 0:00:02]}  dxe1=Q+ {[%clk 0:00:46]} 43. Kxe1 {[%clk 0:00:03]}  Bb2 {[%clk 0:00:46]} 44. a4 {[%clk 0:00:03]}  Ba3 {[%clk 0:00:46]} 45. Ke2 {[%clk 0:00:04]}  Bxb4 {[%clk 0:00:46]} 46. Kf3 {[%clk 0:00:04]}  Kc6 {[%clk 0:00:44]} 47. Ke4 {[%clk 0:00:04]}  Be1 {[%clk 0:00:42]} 48. h5 {[%clk 0:00:05]}  Bxg3 {[%clk 0:00:41]} 49. hxg6 {[%clk 0:00:05]}  hxg6 {[%clk 0:00:41]} 50. f5 {[%clk 0:00:06]}  gxf5+ {[%clk 0:00:39]} 51. Kxf5 {[%clk 0:00:06]}  Kc5 {[%clk 0:00:40]} 52. Ke4 {[%clk 0:00:05]}  Kb4 {[%clk 0:00:39]} 0-1


[Site "https://www.chess.com"]

[Event "Late Titled Tuesday Blitz February 8 2022"]
[White "Lopez Perdomo, Juan David"]
[Black "Haussernot, Cecile"]
[WhiteFideId "4405137"]
[BlackFideId "601632"]
[WhiteElo "1997"]
[BlackElo "2288"]
[Result "1/2-1/2"]
[Round "06"]
[TimeControl "180+1"]
[Date "2022.02.09"]
[WhiteClock "0:00:05"]
[BlackClock "0:00:04"]

1. e4 {[%clk 0:03:00]}  c5 {[%clk 0:01:54]} 2. d4 {[%clk 0:03:00]}  cxd4 {[%clk 0:01:54]} 3. c3 {[%clk 0:03:00]}  dxc3 {[%clk 0:01:55]} 4. Nxc3 {[%clk 0:03:01]}  Nc6 {[%clk 0:01:55]} 5. Nf3 {[%clk 0:03:02]}  e6 {[%clk 0:01:56]} 6. Bc4 {[%clk 0:03:02]}  a6 {[%clk 0:01:56]} 7. O-O {[%clk 0:03:03]}  Nge7 {[%clk 0:01:57]} 8. Bg5 {[%clk 0:03:02]}  f6 {[%clk 0:01:57]} 9. Bh4 {[%clk 0:03:02]}  Ng6 {[%clk 0:01:58]} 10. Bg3 {[%clk 0:03:02]}  Be7 {[%clk 0:01:57]} 11. Qe2 {[%clk 0:03:02]}  O-O {[%clk 0:01:58]} 12. Rfd1 {[%clk 0:03:03]}  Qe8 {[%clk 0:01:52]} 13. Bd6 {[%clk 0:02:47]}  b5 {[%clk 0:01:52]} 14. Bb3 {[%clk 0:02:45]}  Bb7 {[%clk 0:01:51]} 15. Rd2 {[%clk 0:02:44]}  Bd8 {[%clk 0:01:47]} 16. Rad1 {[%clk 0:02:43]}  Rf7 {[%clk 0:01:44]} 17. Ne1 {[%clk 0:02:22]}  Bb6 {[%clk 0:01:42]} 18. Nd3 {[%clk 0:02:20]}  Nd4 {[%clk 0:01:42]} 19. Qh5 {[%clk 0:02:09]}  Rc8 {[%clk 0:01:32]} 20. Nc5 {[%clk 0:01:32]}  Bxc5 {[%clk 0:01:00]} 21. Bxc5 {[%clk 0:01:29]}  Nxb3 {[%clk 0:01:00]} 22. axb3 {[%clk 0:01:30]}  Nf4 {[%clk 0:00:59]} 23. Qg4 {[%clk 0:01:11]}  Rxc5 {[%clk 0:00:57]} 24. Qxf4 {[%clk 0:01:11]}  Bc6 {[%clk 0:00:45]} 25. Qd6 {[%clk 0:01:05]}  Rg5 {[%clk 0:00:42]} 26. f4 {[%clk 0:00:57]}  Rg6 {[%clk 0:00:42]} 27. Re1 {[%clk 0:00:45]}  Qa8 {[%clk 0:00:41]} 28. b4 {[%clk 0:00:32]}  f5 {[%clk 0:00:38]} 29. exf5 {[%clk 0:00:29]}  Rxf5 {[%clk 0:00:33]} 30. g3 {[%clk 0:00:25]}  h5 {[%clk 0:00:31]} 31. Ne2 {[%clk 0:00:20]}  h4 {[%clk 0:00:31]} 32. Rd3 {[%clk 0:00:20]}  Be4 {[%clk 0:00:26]} 33. Rd4 {[%clk 0:00:11]}  Bf3 {[%clk 0:00:22]} 34. Kf2 {[%clk 0:00:11]}  Bxe2 {[%clk 0:00:21]} 35. Rxe2 {[%clk 0:00:12]}  hxg3+ {[%clk 0:00:22]} 36. hxg3 {[%clk 0:00:13]}  Rh5 {[%clk 0:00:22]} 37. Ke3 {[%clk 0:00:12]}  Rxg3+ {[%clk 0:00:21]} 38. Kd2 {[%clk 0:00:12]}  Qf3 {[%clk 0:00:21]} 39. Qxd7 {[%clk 0:00:10]}  Rh6 {[%clk 0:00:15]} 40. Qd8+ {[%clk 0:00:09]}  Kh7 {[%clk 0:00:15]} 41. Qd6 {[%clk 0:00:08]}  Rg2 {[%clk 0:00:10]} 42. Rxg2 {[%clk 0:00:07]}  Qxg2+ {[%clk 0:00:11]} 43. Kc3 {[%clk 0:00:08]}  Rh3+ {[%clk 0:00:10]} 44. Rd3 {[%clk 0:00:09]}  Rh1 {[%clk 0:00:10]} 45. Rd2 {[%clk 0:00:08]}  Rc1+ {[%clk 0:00:09]} 46. Kb3 {[%clk 0:00:08]}  Qf3+ {[%clk 0:00:08]} 47. Qd3+ {[%clk 0:00:09]}  Qxd3+ {[%clk 0:00:05]} 48. Rxd3 {[%clk 0:00:10]}  Kg6 {[%clk 0:00:06]} 49. Rg3+ {[%clk 0:00:09]}  Kf6 {[%clk 0:00:06]} 50. Rf3 {[%clk 0:00:06]}  Rc4 {[%clk 0:00:06]} 51. Ka3 {[%clk 0:00:03]}  Kf5 {[%clk 0:00:06]} 52. Rg3 {[%clk 0:00:03]}  Kf6 {[%clk 0:00:05]} 53. Rf3 {[%clk 0:00:03]}  g6 {[%clk 0:00:05]} 54. b3 {[%clk 0:00:03]}  Re4 {[%clk 0:00:04]} 55. Kb2 {[%clk 0:00:04]}  Kf5 {[%clk 0:00:04]} 56. Rg3 {[%clk 0:00:03]}  Rxf4 {[%clk 0:00:05]} 57. Rd3 {[%clk 0:00:04]}  Re4 {[%clk 0:00:04]} 58. Rd8 {[%clk 0:00:05]}  Re2+ {[%clk 0:00:04]} 59. Ka3 {[%clk 0:00:05]}  g5 {[%clk 0:00:03]} 60. Rf8+ {[%clk 0:00:05]}  Ke4 {[%clk 0:00:04]} 61. Rf4+ {[%clk 0:00:05]}  gxf4 {[%clk 0:00:04]} 1/2-1/2


[Site "https://www.chess.com"]

[Event "Late Titled Tuesday Blitz February 8 2022"]
[White "Marcziter, Dmitrii"]
[Black "Baker, Chris W"]
[WhiteFideId "13900765"]
[BlackFideId "401676"]
[WhiteElo "2155"]
[BlackElo "2142"]
[Result "1-0"]
[Round "06"]
[TimeControl "180+1"]
[Date "2022.02.09"]
[WhiteClock "0:01:13"]
[BlackClock "0:00:53"]

1. d4 {[%clk 0:03:00]}  e6 {[%clk 0:02:59]} 2. c4 {[%clk 0:02:59]}  f5 {[%clk 0:02:59]} 3. g3 {[%clk 0:02:59]}  Nf6 {[%clk 0:02:58]} 4. Bg2 {[%clk 0:03:00]}  Be7 {[%clk 0:02:59]} 5. Nc3 {[%clk 0:02:59]}  O-O {[%clk 0:02:57]} 6. Nh3 {[%clk 0:02:59]}  d6 {[%clk 0:02:56]} 7. O-O {[%clk 0:02:58]}  a5 {[%clk 0:02:52]} 8. e4 {[%clk 0:02:57]}  Nxe4 {[%clk 0:02:49]} 9. Nxe4 {[%clk 0:02:56]}  fxe4 {[%clk 0:02:49]} 10. Bxe4 {[%clk 0:02:57]}  d5 {[%clk 0:02:46]} 11. Bg2 {[%clk 0:02:52]}  Bf6 {[%clk 0:02:35]} 12. c5 {[%clk 0:02:43]}  Nc6 {[%clk 0:02:33]} 13. Be3 {[%clk 0:02:41]}  Kh8 {[%clk 0:02:26]} 14. Nf4 {[%clk 0:02:40]}  e5 {[%clk 0:02:11]} 15. dxe5 {[%clk 0:02:37]}  Bxe5 {[%clk 0:02:07]} 16. Nxd5 {[%clk 0:02:36]}  Bxb2 {[%clk 0:02:04]} 17. Rb1 {[%clk 0:02:33]}  Be5 {[%clk 0:02:00]} 18. f4 {[%clk 0:02:28]}  Bf6 {[%clk 0:01:58]} 19. a3 {[%clk 0:02:18]}  Rb8 {[%clk 0:01:55]} 20. Qd3 {[%clk 0:02:04]}  Be6 {[%clk 0:01:46]} 21. Rfd1 {[%clk 0:02:00]}  Qe8 {[%clk 0:01:42]} 22. Nxc7 {[%clk 0:01:56]}  Qf7 {[%clk 0:01:34]} 23. Nxe6 {[%clk 0:01:55]}  Qxe6 {[%clk 0:01:34]} 24. Bf2 {[%clk 0:01:54]}  Rfd8 {[%clk 0:01:28]} 25. Qe4 {[%clk 0:01:54]}  Qa2 {[%clk 0:01:24]} 26. a4 {[%clk 0:01:37]}  Re8 {[%clk 0:01:20]} 27. Qd5 {[%clk 0:01:30]}  Qxa4 {[%clk 0:01:10]} 28. Re1 {[%clk 0:01:27]}  Qc2 {[%clk 0:01:04]} 29. Qf7 {[%clk 0:01:22]}  Rf8 {[%clk 0:00:56]} 30. Qh5 {[%clk 0:01:16]}  Bd4 {[%clk 0:00:55]} 31. Bxd4 {[%clk 0:01:15]}  Nxd4 {[%clk 0:00:53]} 32. Be4 {[%clk 0:01:13]} 1-0


[Site "https://www.chess.com"]

[Event "Late Titled Tuesday Blitz February 8 2022"]
[White "Martinez Alcantara, Jose Eduardo"]
[Black "Shoker, Samy"]
[WhiteFideId "3805662"]
[BlackFideId "627143"]
[WhiteElo "2690"]
[BlackElo "2493"]
[Result "1-0"]
[Round "06"]
[TimeControl "180+1"]
[Date "2022.02.08"]
[WhiteClock "0:00:09"]
[BlackClock "0:00:34"]

1. e4 {[%clk 0:03:00]}  d6 {[%clk 0:02:59]} 2. d4 {[%clk 0:03:00]}  Nf6 {[%clk 0:02:59]} 3. Nc3 {[%clk 0:03:01]}  g6 {[%clk 0:03:00]} 4. g3 {[%clk 0:02:59]}  Bg7 {[%clk 0:03:00]} 5. Bg2 {[%clk 0:02:59]}  O-O {[%clk 0:03:00]} 6. Nge2 {[%clk 0:03:00]}  c6 {[%clk 0:02:59]} 7. a4 {[%clk 0:03:00]}  e5 {[%clk 0:02:58]} 8. O-O {[%clk 0:03:00]}  exd4 {[%clk 0:02:57]} 9. Nxd4 {[%clk 0:03:00]}  Na6 {[%clk 0:02:57]} 10. a5 {[%clk 0:02:47]}  Re8 {[%clk 0:02:57]} 11. Bf4 {[%clk 0:02:33]}  Nc5 {[%clk 0:02:33]} 12. Re1 {[%clk 0:02:24]}  a6 {[%clk 0:02:21]} 13. h3 {[%clk 0:02:14]}  Nh5 {[%clk 0:02:04]} 14. Be3 {[%clk 0:02:11]}  Nf6 {[%clk 0:02:04]} 15. f3 {[%clk 0:01:29]}  h5 {[%clk 0:01:42]} 16. h4 {[%clk 0:01:22]}  Qe7 {[%clk 0:01:35]} 17. Qd2 {[%clk 0:01:20]}  Bd7 {[%clk 0:01:35]} 18. Bf4 {[%clk 0:01:14]}  Rad8 {[%clk 0:01:32]} 19. Rad1 {[%clk 0:01:11]}  Bc8 {[%clk 0:01:22]} 20. Bg5 {[%clk 0:01:04]}  Qc7 {[%clk 0:01:20]} 21. b4 {[%clk 0:01:00]}  Ne6 {[%clk 0:01:19]} 22. Nxe6 {[%clk 0:00:49]}  Bxe6 {[%clk 0:01:20]} 23. Ne2 {[%clk 0:00:39]}  d5 {[%clk 0:01:18]} 24. Qf4 {[%clk 0:00:38]}  Qxf4 {[%clk 0:01:15]} 25. Nxf4 {[%clk 0:00:39]}  dxe4 {[%clk 0:01:11]} 26. Rxd8 {[%clk 0:00:34]}  Rxd8 {[%clk 0:01:11]} 27. Nxe6 {[%clk 0:00:30]}  fxe6 {[%clk 0:01:12]} 28. fxe4 {[%clk 0:00:29]}  Rd4 {[%clk 0:01:10]} 29. c3 {[%clk 0:00:20]}  Rc4 {[%clk 0:01:05]} 30. Bd2 {[%clk 0:00:18]}  e5 {[%clk 0:00:53]} 31. Kf1 {[%clk 0:00:10]}  c5 {[%clk 0:00:52]} 32. Ke2 {[%clk 0:00:08]}  Nxe4 {[%clk 0:00:42]} 33. Kd3 {[%clk 0:00:06]}  Nxd2 {[%clk 0:00:41]} 34. Bd5+ {[%clk 0:00:07]}  Kf8 {[%clk 0:00:42]} 35. Bxc4 {[%clk 0:00:06]}  Nxc4 {[%clk 0:00:41]} 36. Kxc4 {[%clk 0:00:07]}  cxb4 {[%clk 0:00:41]} 37. cxb4 {[%clk 0:00:07]}  Ke7 {[%clk 0:00:41]} 38. Kd5 {[%clk 0:00:08]}  Kd7 {[%clk 0:00:40]} 39. Rf1 {[%clk 0:00:09]}  Ke7 {[%clk 0:00:40]} 40. Rf2 {[%clk 0:00:09]}  Bf6 {[%clk 0:00:39]} 41. Rf3 {[%clk 0:00:07]}  Bg7 {[%clk 0:00:39]} 42. b5 {[%clk 0:00:07]}  axb5 {[%clk 0:00:39]} 43. Rb3 {[%clk 0:00:08]}  Kd7 {[%clk 0:00:37]} 44. Rxb5 {[%clk 0:00:09]}  Kc7 {[%clk 0:00:37]} 45. Rb6 {[%clk 0:00:09]}  e4 {[%clk 0:00:36]} 46. Rxg6 {[%clk 0:00:09]}  Bc3 {[%clk 0:00:36]} 47. Kxe4 {[%clk 0:00:10]}  Bxa5 {[%clk 0:00:36]} 48. Rg7+ {[%clk 0:00:10]}  Kc6 {[%clk 0:00:36]} 49. Rg5 {[%clk 0:00:11]}  b5 {[%clk 0:00:37]} 50. Rxh5 {[%clk 0:00:11]}  Be1 {[%clk 0:00:37]} 51. g4 {[%clk 0:00:09]}  b4 {[%clk 0:00:37]} 52. Kd3 {[%clk 0:00:10]}  b3 {[%clk 0:00:36]} 53. g5 {[%clk 0:00:10]}  b2 {[%clk 0:00:36]} 54. Kc2 {[%clk 0:00:11]}  Bc3 {[%clk 0:00:36]} 55. g6 {[%clk 0:00:11]}  Kd6 {[%clk 0:00:36]} 56. Rb5 {[%clk 0:00:09]}  Bg7 {[%clk 0:00:34]} 57. Rb7 {[%clk 0:00:09]} 1-0


[Site "https://www.chess.com"]